fUST/lending_fUST_20251216
["ID","MTS","AMOUNT","RATE_DAILY","PERIOD"]
[398587279,1765857086447,-724.68,0.00012602,2]
[398587280,1765857086457,-728.64,0.00012602,2]
[398587281,1765857086467,-1000.0,0.00012602,2]
[398587282,1765857086476,-500.0,0.00012602,2]
[398587283,1765857086486,-788.39,0.00012602,2]
[398587284,1765857086495,-713.19,0.00012602,2]
[398587285,1765857086505,-711.19,0.00012602,2]
[398587286,1765857086514,-1903.91,0.00012602,2]
[398587287,1765857086523,-500.0,0.00012602,2]
[398587288,1765857086532,-500.0,0.00012602,2]
[398587289,1765857086541,-1163.59,0.00012602,2]
[398587290,1765857086550,-541.86,0.00012602,2]
[398587291,1765857086561,-873.56,0.00012602,2]
[398587292,1765857086570,-500.0,0.00012602,2]
[398587293,1765857086580,-500.0,0.00012602,2]
[398587294,1765857086590,-500.0,0.00012602,2]
[398587295,1765857086599,-500.0,0.00012602,2]
[398587296,1765857086609,-500.0,0.00012602,2]
[398587297,1765857086620,-500.0,0.00012602,2]
[398587298,1765857086630,-623.95,0.00012602,2]
[398587299,1765857086640,-500.0,0.00012602,2]
[398587300,1765857086650,-500.0,0.00012602,2]
[398587301,1765857086660,-501.91304142,0.00012602,2]
[398587302,1765857086670,-500.0,0.00012602,2]
[398587303,1765857086680,-939.88,0.00012602,2]
[398587304,1765857086690,-500.0,0.00012602,2]
[398587305,1765857086699,-514.0,0.00012602,2]
[398587306,1765857086708,-500.0,0.00012602,2]
[398587307,1765857086717,-500.0,0.00012602,2]
[398587308,1765857086728,-500.0,0.00012602,2]
[398587309,1765857086738,-500.0,0.00012602,2]
[398587310,1765857086747,-500.0,0.00012602,2]
[398587311,1765857086756,-1404.96,0.00012602,2]
[398587312,1765857086765,-2624.19,0.00012602,2]
[398587313,1765857086774,-1165.8,0.00012602,2]
[398587314,1765857086783,-782.31,0.00012602,2]
[398587315,1765857086792,-500.0,0.00012602,2]
[398587316,1765857086801,-500.0,0.00012602,2]
[398587317,1765857086809,-500.0,0.00012602,2]
[398587318,1765857086819,-500.0,0.00012602,2]
[398587319,1765857086828,-500.0,0.00012602,2]
[398587320,1765857086838,-500.0,0.00012602,2]
[398587321,1765857086847,-500.0,0.00012602,2]
[398587322,1765857086856,-501.81473326,0.00012602,2]
[398587323,1765857086865,-500.0,0.00012602,2]
[398587324,1765857086874,-500.0,0.00012602,2]
[398587325,1765857086884,-2047.92,0.00012602,2]
[398587326,1765857086893,-500.0,0.00012602,2]
[398587327,1765857086903,-1419.58,0.00012602,2]
[398587328,1765857086912,-563.6274451,0.00012602,2]
[398587329,1765857086921,-2858.67,0.00012602,2]
[398587330,1765857086931,-915.74,0.00012602,2]
[398587331,1765857086940,-500.0,0.00012602,2]
[398587332,1765857086949,-561.34,0.00012602,2]
[398587333,1765857086959,-862.14,0.00012602,2]
[398587334,1765857086968,-500.0,0.00012602,2]
[398587335,1765857086978,-728.64,0.00012602,2]
[398587336,1765857086987,-500.0,0.00012602,2]
[398587337,1765857086996,-1196.22,0.00012602,2]
[398587338,1765857087005,-500.0,0.00012602,2]
[398587339,1765857087015,-764.95,0.00012602,2]
[398587340,1765857087023,-1723.48,0.00012602,2]
[398587341,1765857087033,-500.0,0.00012602,2]
[398587342,1765857087042,-795.49,0.00012602,2]
[398587343,1765857087052,-500.0,0.00012602,2]
[398587344,1765857087060,-579.03,0.00012602,2]
[398587345,1765857087070,-527.94,0.00012602,2]
[398587346,1765857087079,-500.0,0.00012602,2]
[398587347,1765857087089,-613.42,0.00012602,2]
[398587348,1765857087098,-852.9,0.00012602,2]
[398587349,1765857087106,-1741.83,0.00012602,2]
[398587350,1765857087116,-500.0,0.00012602,2]
[398587351,1765857087125,-500.0,0.00012602,2]
[398587352,1765857087137,-579.96,0.00012602,2]
[398587353,1765857087146,-500.0,0.00012602,2]
[398587354,1765857087155,-500.0,0.00012602,2]
[398587355,1765857087164,-500.0,0.00012602,2]
[398587356,1765857087175,-882.7,0.00012602,2]
[398587357,1765857087184,-500.0,0.00012602,2]
[398587358,1765857087193,-909.29,0.00012602,2]
[398587359,1765857087202,-500.0,0.00012602,2]
[398587360,1765857087214,-500.0,0.00012602,2]
[398587361,1765857087223,-500.0,0.00012602,2]
[398587362,1765857087232,-620.64813206,0.00012602,2]
[398587363,1765857087242,-500.0,0.00012602,2]
[398587364,1765857087251,-500.0,0.00012602,2]
[398587365,1765857087261,-500.0,0.00012602,2]
[398587366,1765857087271,-1389.03,0.00012602,2]
[398587367,1765857087280,-652.64,0.00012602,2]
[398587368,1765857087289,-500.0,0.00012602,2]
[398587369,1765857087298,-863.06,0.00012602,2]
[398587370,1765857087307,-946.95,0.00012602,2]
[398587371,1765857087316,-500.0,0.00012602,2]
[398587372,1765857087325,-357.06320764,0.00012602,2]
[398587373,1765857087334,-752.63,0.00012602,2]
[398587374,1765857087343,-500.0,0.00012602,2]
[398587375,1765857087353,-500.0,0.00012602,2]
[398587376,1765857087362,-500.0,0.00012602,2]
[398587377,1765857087371,-1824.47,0.00012602,2]
[398587378,1765857087380,-631.43,0.00012602,2]
[398587379,1765857087389,-548.39,0.00012602,2]
[398587380,1765857087398,-500.0,0.00012602,2]
[398587381,1765857087407,-5069.0,0.00012602,2]
[398587382,1765857087415,-869.38,0.00012602,2]
[398587383,1765857087424,-500.0,0.00012602,2]
[398587384,1765857087434,-500.0,0.00012602,2]
[398587385,1765857087444,-1418.86,0.00012602,2]
[398587386,1765857087453,-500.0,0.00012602,2]
[398587387,1765857087461,-500.0,0.00012602,2]
[398587388,1765857087470,-1398.62,0.00012602,2]
[398587389,1765857087479,-2490.08,0.00012602,2]
[398587390,1765857087488,-500.0,0.00012602,2]
[398587391,1765857087497,-500.0,0.00012602,2]
[398587392,1765857087506,-886.06,0.00012602,2]
[398587393,1765857087515,-503.97972814,0.00012602,2]
[398587394,1765857087524,-555.44,0.00012602,2]
[398587395,1765857087534,-500.0,0.00012602,2]
[398587396,1765857087543,-500.0,0.00012602,2]
[398587397,1765857087551,-886.48,0.00012602,2]
[398587398,1765857087561,-528.18,0.00012602,2]
[398587399,1765857087570,-1144.03,0.00012602,2]
[398587400,1765857087580,-1839.21,0.00012602,2]
[398587401,1765857087591,-500.0,0.00012602,2]
[398587402,1765857087600,-500.0,0.00012602,2]
[398587403,1765857087609,-760.81,0.00012602,2]
[398587404,1765857087619,-500.0,0.00012602,2]
[398587405,1765857087629,-578.54,0.00012602,2]
[398587406,1765857087641,-500.0,0.00012602,2]
[398587407,1765857087649,-525.22,0.00012602,2]
[398587408,1765857087660,-1799.91,0.00012602,2]
[398587409,1765857087669,-500.0,0.00012602,2]
[398587410,1765857087678,-1395.69,0.00012602,2]
[398587411,1765857087824,-500.0,0.00012602,2]
[398587412,1765857087834,-500.0,0.00012602,2]
[398587413,1765857087845,-500.0,0.00012602,2]
[398587414,1765857087854,-500.0,0.00012602,2]
[398587415,1765857087863,-2489.6,0.00012602,2]
[398587416,1765857087872,-500.0,0.00012602,2]
[398587417,1765857087880,-500.0,0.00012602,2]
[398587418,1765857087890,-500.0,0.00012602,2]
[398587419,1765857087899,-500.0,0.00012602,2]
[398587420,1765857087908,-500.0,0.00012602,2]
[398587421,1765857087917,-3564.58,0.00012602,2]
[398587422,1765857087927,-1851.38,0.00012602,2]
[398587423,1765857087937,-1892.77,0.00012602,2]
[398587424,1765857087946,-500.0,0.00012602,2]
[398587425,1765857087955,-500.0,0.00012602,2]
[398587426,1765857087964,-554.05,0.00012602,2]
[398587427,1765857087973,-625.7,0.00012602,2]
[398587428,1765857087982,-614.05,0.00012602,2]
[398587429,1765857087991,-500.0,0.00012602,2]
[398587430,1765857088001,-1268.17,0.00012602,2]
[398587431,1765857088010,-500.0,0.00012602,2]
[398587432,1765857088019,-500.0,0.00012602,2]
[398587433,1765857088028,-2548.3,0.00012602,2]
[398587434,1765857088037,-964.39,0.00012602,2]
[398587435,1765857088047,-500.0,0.00012602,2]
[398587436,1765857088055,-500.0,0.00012602,2]
[398587437,1765857088065,-500.0,0.00012602,2]
[398587438,1765857088074,-2757.29,0.00012602,2]
[398587439,1765857088084,-921.12,0.00012602,2]
[398587440,1765857088094,-1379.13,0.00012602,2]
[398587441,1765857088103,-500.0,0.00012602,2]
[398587442,1765857088113,-1281.57,0.00012602,2]
[398587443,1765857088123,-500.0,0.00012602,2]
[398587444,1765857088136,-500.0,0.00012602,2]
[398587445,1765857088145,-500.0,0.00012602,2]
[398587446,1765857088154,-591.0,0.00012602,2]
[398587447,1765857088163,-500.0,0.00012602,2]
[398587448,1765857088174,-500.0,0.00012602,2]
[398587449,1765857088183,-621.24,0.00012602,2]
[398587450,1765857088193,-500.0,0.00012602,2]
[398587451,1765857088203,-500.0,0.00012602,2]
[398587452,1765857088218,-858.92,0.00012602,2]
[398587453,1765857088227,-604.25,0.00012602,2]
[398587454,1765857088237,-601.93,0.00012602,2]
[398587455,1765857088246,-1724.77,0.00012602,2]
[398587456,1765857088256,-500.0,0.00012602,2]
[398587457,1765857088266,-1883.58,0.00012602,2]
[398587458,1765857088275,-500.0,0.00012602,2]
[398587459,1765857088285,-500.0,0.00012602,2]
[398587460,1765857088294,-897.25,0.00012602,2]
[398587461,1765857088304,-1210.79,0.00012602,2]
[398587462,1765857088313,-1351.77,0.00012602,2]
[398587463,1765857088322,-500.0,0.00012602,2]
[398587464,1765857088332,-773.94,0.00012602,2]
[398587465,1765857088341,-500.0,0.00012602,2]
[398587466,1765857088350,-724.47,0.00012602,2]
[398587467,1765857088360,-500.0,0.00012602,2]
[398587468,1765857088369,-1559.66,0.00012602,2]
[398587469,1765857088378,-500.0,0.00012602,2]
[398587470,1765857088387,-500.0,0.00012602,2]
[398587471,1765857088396,-658.19,0.00012602,2]
[398587472,1765857088405,-901.9,0.00012602,2]
[398587473,1765857088414,-500.0,0.00012602,2]
[398587474,1765857088424,-1664.36,0.00012602,2]
[398587475,1765857088433,-500.0,0.00012602,2]
[398587476,1765857088444,-500.0,0.00012602,2]
[398587477,1765857088457,-540.02,0.00012602,2]
[398587478,1765857088466,-1280.6,0.00012602,2]
[398587479,1765857088475,-1404.56,0.00012602,2]
[398587480,1765857088488,-500.0,0.00012602,2]
[398587481,1765857088499,-591.59587086,0.00012602,2]
[398587482,1765857088509,-577.11,0.00012602,2]
[398587483,1765857088518,-517.8,0.00012602,2]
[398587484,1765857088528,-312.59337295,0.00012602,2]
[398587485,1765857088538,-851.34,0.00012602,2]
[398587486,1765857088549,-420.18280775,0.00012602,2]
[398587487,1765857088558,-1225.41,0.00012602,2]
[398587488,1765857088568,-500.0,0.00012602,2]
[398587489,1765857088578,-500.0,0.00012602,2]
[398587490,1765857088587,-470.79,0.00012602,2]
[398587491,1765857088597,-500.0,0.00012602,2]
[398587492,1765857088606,-6779.98,0.00012602,2]
[398587493,1765857088615,-500.0,0.00012602,2]
[398587494,1765857088627,-500.0,0.00012602,2]
[398587495,1765857088636,-500.0,0.00012602,2]
[398587496,1765857088646,-500.0,0.00012602,2]
[398587497,1765857088656,-879.62,0.00012602,2]
[398587498,1765857088665,-500.0,0.00012602,2]
[398587499,1765857088675,-849.34,0.00012602,2]
[398587500,1765857088684,-507.89727038,0.00012602,2]
[398587501,1765857088693,-4220.16,0.00012602,2]
[398587502,1765857088702,-500.0,0.00012602,2]
[398587503,1765857088710,-500.0,0.00012602,2]
[398587504,1765857088719,-500.0,0.00012602,2]
[398587505,1765857088728,-500.0,0.00012602,2]
[398587506,1765857088738,-2541.48,0.00012602,2]
[398587507,1765857088747,-500.0,0.00012602,2]
[398587508,1765857088757,-618.0,0.00012602,2]
[398587509,1765857088766,-1330.94,0.00012602,2]
[398587510,1765857088775,-502.75,0.00012602,2]
[398587511,1765857088785,-500.0,0.00012602,2]
[398587512,1765857088795,-1721.89,0.00012602,2]
[398587513,1765857088804,-1471.73,0.00012602,2]
[398587514,1765857088814,-1794.66,0.00012602,2]
[398587515,1765857088823,-500.0,0.00012602,2]
[398587516,1765857088833,-500.0,0.00012602,2]
[398587517,1765857088842,-500.0,0.00012602,2]
[398587518,1765857088851,-1436.2,0.00012602,2]
[398587519,1765857088860,-919.0,0.00012602,2]
[398587520,1765857088870,-1483.78,0.00012602,2]
[398587521,1765857088879,-500.0,0.00012602,2]
[398587522,1765857088889,-9283.55,0.00012602,2]
[398587523,1765857088898,-1109.0,0.00012602,2]
[398587524,1765857088907,-930.78,0.00012602,2]
[398587525,1765857088916,-700.85,0.00012602,2]
[398587526,1765857088925,-500.0,0.00012602,2]
[398587527,1765857088934,-2453.55,0.00012602,2]
[398587528,1765857088943,-707.6,0.00012602,2]
[398587529,1765857088952,-536.25,0.00012602,2]
[398587530,1765857088961,-500.0,0.00012602,2]
[398587531,1765857088970,-500.0,0.00012602,2]
[398587532,1765857088979,-990.55,0.00012602,2]
[398587533,1765857088988,-500.0,0.00012602,2]
[398587534,1765857088998,-2349.49,0.00012602,2]
[398587535,1765857089007,-2196.03,0.00012602,2]
[398587536,1765857089016,-500.0,0.00012602,2]
[398587537,1765857089026,-1420.86,0.00012602,2]
[398587538,1765857089035,-1354.29,0.00012602,2]
[398587539,1765857089044,-1566.76,0.00012602,2]
[398587540,1765857089053,-500.0,0.00012602,2]
[398587541,1765857089063,-1789.22,0.00012602,2]
[398587542,1765857089072,-500.0,0.00012602,2]
[398587543,1765857089082,-975.67,0.00012602,2]
[398587544,1765857089090,-997.09,0.00012602,2]
[398587545,1765857089099,-1344.17,0.00012602,2]
[398587546,1765857089109,-600.75,0.00012602,2]
[398587547,1765857089118,-500.0,0.00012602,2]
[398587548,1765857089129,-4842.15,0.00012602,2]
[398587549,1765857089148,-500.0,0.00012602,2]
[398587550,1765857089158,-938.39,0.00012602,2]
[398587551,1765857089167,-513.63,0.00012602,2]
[398587552,1765857089176,-1372.69,0.00012602,2]
[398587553,1765857089186,-500.0,0.00012602,2]
[398587554,1765857089195,-500.0,0.00012602,2]
[398587555,1765857089204,-1192.19,0.00012602,2]
[398587556,1765857089213,-825.5,0.00012602,2]
[398587557,1765857089222,-2748.55,0.00012602,2]
[398587558,1765857089231,-500.0,0.00012602,2]
[398587559,1765857089240,-2322.09,0.00012602,2]
[398587560,1765857089249,-708.11,0.00012602,2]
[398587561,1765857089258,-2125.4,0.00012602,2]
[398587562,1765857089268,-500.0,0.00012602,2]
[398587563,1765857089277,-500.0,0.00012602,2]
[398587564,1765857089287,-6830.61,0.00012602,2]
[398587565,1765857089296,-500.0,0.00012602,2]
[398587566,1765857089305,-8377.94,0.00012602,2]
[398587567,1765857089314,-500.0,0.00012602,2]
[398587568,1765857089324,-2121.87,0.00012602,2]
[398587569,1765857089333,-500.0,0.00012602,2]
[398587570,1765857089343,-858.84,0.00012602,2]
[398587571,1765857089352,-945.29,0.00012602,2]
[398587572,1765857089362,-1092.05,0.00012602,2]
[398587573,1765857089371,-580.26,0.00012602,2]
[398587574,1765857089381,-500.0,0.00012602,2]
[398587575,1765857089389,-500.0,0.00012602,2]
[398587576,1765857089398,-2445.72,0.00012602,2]
[398587577,1765857089408,-500.0,0.00012602,2]
[398587578,1765857089417,-3903.36,0.00012602,2]
[398587579,1765857089426,-537.08,0.00012602,2]
[398587580,1765857089436,-618.36,0.00012602,2]
[398587581,1765857089444,-500.0,0.00012602,2]
[398587582,1765857089453,-4243.55,0.00012602,2]
[398587583,1765857089462,-500.0,0.00012602,2]
[398587584,1765857089470,-1422.62,0.00012602,2]
[398587585,1765857089479,-800.38,0.00012602,2]
[398587586,1765857089488,-1202.09,0.00012602,2]
[398587587,1765857089497,-799.6,0.00012602,2]
[398587588,1765857089506,-520.25,0.00012602,2]
[398587589,1765857089516,-14584.18,0.00012602,2]
[398587590,1765857089526,-2341.35,0.00012602,2]
[398587591,1765857089535,-500.0,0.00012602,2]
[398587592,1765857089544,-614.63,0.00012602,2]
[398587593,1765857089553,-3921.7,0.00012602,2]
[398587594,1765857089562,-2042.99,0.00012602,2]
[398587595,1765857089571,-500.0,0.00012602,2]
[398587596,1765857089580,-2154.94,0.00012602,2]
[398587597,1765857089589,-1164.37,0.00012602,2]
[398587598,1765857089598,-1452.17,0.00012602,2]
[398587599,1765857089607,-940.07,0.00012602,2]
[398587600,1765857089617,-500.0,0.00012602,2]
[398587601,1765857089625,-3354.89,0.00012602,2]
[398587602,1765857089635,-500.0,0.00012602,2]
[398587603,1765857089644,-885.63,0.00012602,2]
[398587604,1765857089654,-500.0,0.00012602,2]
[398587605,1765857089664,-583.17,0.00012602,2]
[398587606,1765857089673,-934.17,0.00012602,2]
[398587607,1765857089682,-500.0,0.00012602,2]
[398587608,1765857089691,-500.0,0.00012602,2]
[398587609,1765857089700,-2662.12,0.00012602,2]
[398587610,1765857089709,-1389.33,0.00012602,2]
[398587611,1765857089718,-2691.53,0.00012602,2]
[398587612,1765857089727,-500.0,0.00012602,2]
[398587613,1765857089736,-500.0,0.00012602,2]
[398587614,1765857089744,-500.0,0.00012602,2]
[398587615,1765857089753,-500.0,0.00012602,2]
[398587616,1765857089762,-947.29,0.00012602,2]
[398587617,1765857089771,-500.0,0.00012602,2]
[398587618,1765857089780,-500.0,0.00012602,2]
[398587619,1765857089789,-1434.18,0.00012602,2]
[398587620,1765857089798,-607.29,0.00012602,2]
[398587621,1765857089807,-500.0,0.00012602,2]
[398587622,1765857089816,-500.0,0.00012602,2]
[398587623,1765857089825,-500.0,0.00012602,2]
[398587624,1765857089834,-3493.92,0.00012602,2]
[398587625,1765857089843,-500.0,0.00012602,2]
[398587626,1765857089851,-500.0,0.00012602,2]
[398587627,1765857089860,-1734.78,0.00012602,2]
[398587628,1765857089869,-529.53,0.00012602,2]
[398587629,1765857090002,-500.0,0.00012602,2]
[398587630,1765857090023,-1497.62,0.00012602,2]
[398587631,1765857090034,-1890.34,0.00012602,2]
[398587632,1765857090043,-1724.14,0.00012602,2]
[398587633,1765857090051,-1321.15,0.00012602,2]
[398587634,1765857090061,-627.84,0.00012602,2]
[398587635,1765857090070,-1136.33,0.00012602,2]
[398587636,1765857090079,-500.0,0.00012602,2]
[398587637,1765857090088,-2584.7,0.00012602,2]
[398587638,1765857090097,-500.0,0.00012602,2]
[398587639,1765857090106,-906.3,0.00012602,2]
[398587640,1765857090115,-523.47,0.00012602,2]
[398587641,1765857090124,-500.0,0.00012602,2]
[398587642,1765857090137,-860.33,0.00012602,2]
[398587643,1765857090146,-1103.9,0.00012602,2]
[398587644,1765857090154,-500.0,0.00012602,2]
[398587645,1765857090163,-526.2,0.00012602,2]
[398587646,1765857090172,-625.36,0.00012602,2]
[398587647,1765857090181,-500.0,0.00012602,2]
[398587648,1765857090190,-500.0,0.00012602,2]
[398587649,1765857090199,-3387.17,0.00012602,2]
[398587650,1765857090208,-838.05,0.00012602,2]
[398587651,1765857090217,-500.0,0.00012602,2]
[398587652,1765857090225,-717.42,0.00012602,2]
[398587653,1765857090234,-500.0,0.00012602,2]
[398587654,1765857090243,-11122.08,0.00012602,2]
[398587655,1765857090252,-1435.24,0.00012602,2]
[398587656,1765857090261,-645.68,0.00012602,2]
[398587657,1765857090270,-22080.53,0.00012602,2]
[398587658,1765857090278,-3719.53,0.00012602,2]
[398587659,1765857090287,-500.0,0.00012602,2]
[398587660,1765857090296,-835.99,0.00012602,2]
[398587661,1765857090304,-1808.12,0.00012602,2]
[398587662,1765857090313,-500.0,0.00012602,2]
[398587663,1765857090322,-500.0,0.00012602,2]
[398587664,1765857090331,-500.0,0.00012602,2]
[398587665,1765857090340,-501.40917361,0.00012602,2]
[398587666,1765857090350,-8246.11,0.00012602,2]
[398587667,1765857090359,-1665.52,0.00012602,2]
[398587668,1765857090368,-500.0,0.00012602,2]
[398587669,1765857090377,-500.0,0.00012602,2]
[398587670,1765857090386,-500.0,0.00012602,2]
[398587671,1765857090395,-505.05,0.00012602,2]
[398587672,1765857090404,-500.0,0.00012602,2]
[398587673,1765857090412,-5019.38,0.00012602,2]
[398587674,1765857090421,-688.63,0.00012602,2]
[398587675,1765857090430,-980.38,0.00012602,2]
[398587676,1765857090439,-2863.98,0.00012602,2]
[398587677,1765857090447,-2333.27,0.00012602,2]
[398587678,1765857090456,-500.0,0.00012602,2]
[398587679,1765857090464,-500.0,0.00012602,2]
[398587680,1765857090473,-500.0,0.00012602,2]
[398587681,1765857090482,-884.98,0.00012602,2]
[398587682,1765857090491,-2011.13,0.00012602,2]
[398587683,1765857090500,-500.0,0.00012602,2]
[398587684,1765857090509,-561.14,0.00012602,2]
[398587685,1765857090518,-1161.7,0.00012602,2]
[398587686,1765857090527,-5555.9,0.00012602,2]
[398587687,1765857090536,-1243.71,0.00012602,2]
[398587688,1765857090545,-35354.14,0.00012602,2]
[398587689,1765857090553,-9588.87,0.00012602,2]
[398587690,1765857090562,-500.0,0.00012602,2]
[398587691,1765857090570,-1419.14,0.00012602,2]
[398587692,1765857090579,-1172.55,0.00012602,2]
[398587693,1765857090588,-500.0,0.00012602,2]
[398587694,1765857090597,-500.0,0.00012602,2]
[398587695,1765857090606,-2089.03,0.00012602,2]
[398587696,1765857090616,-500.0,0.00012602,2]
[398587697,1765857090625,-3963.15,0.00012602,2]
[398587698,1765857090634,-2257.39,0.00012602,2]
[398587699,1765857090644,-1097.79,0.00012602,2]
[398587700,1765857090653,-1991.38,0.00012602,2]
[398587701,1765857090662,-841.22,0.00012602,2]
[398587702,1765857090671,-500.0,0.00012602,2]
[398587703,1765857090681,-273.90420457,0.00012602,2]
[398587704,1765857090690,-500.0,0.00012602,2]
[398587705,1765857090700,-500.0,0.00012602,2]
[398587706,1765857090709,-800.38,0.00012602,2]
[398587707,1765857090719,-1431.03,0.00012602,2]
[398587708,1765857090729,-500.0,0.00012602,2]
[398587709,1765857090738,-8351.41,0.00012602,2]
[398587710,1765857090748,-500.0,0.00012602,2]
[398587711,1765857090757,-1423.76,0.00012602,2]
[398587712,1765857090767,-896.79,0.00012602,2]
[398587713,1765857090777,-500.0,0.00012602,2]
[398587714,1765857090787,-1140.27,0.00012602,2]
[398587715,1765857090796,-4075.24,0.00012602,2]
[398587716,1765857090805,-914.19,0.00012602,2]
[398587717,1765857090813,-500.0,0.00012602,2]
[398587718,1765857090822,-500.0,0.00012602,2]
[398587719,1765857090833,-3247.84,0.00012602,2]
[398587720,1765857090842,-1445.43,0.00012602,2]
[398587721,1765857090852,-500.0,0.00012602,2]
[398587722,1765857090862,-940.6,0.00012602,2]
[398587723,1765857090871,-500.0,0.00012602,2]
[398587724,1765857090880,-500.0,0.00012602,2]
[398587725,1765857090890,-500.0,0.00012602,2]
[398587726,1765857090899,-1956.75,0.00012602,2]
[398587727,1765857090908,-500.0,0.00012602,2]
[398587728,1765857090917,-1069.42,0.00012602,2]
[398587729,1765857090926,-2026.56,0.00012602,2]
[398587730,1765857090935,-1628.96,0.00012602,2]
[398587731,1765857090945,-1954.46,0.00012602,2]
[398587732,1765857090963,-1842.29,0.00012602,2]
[398587733,1765857090978,-500.0,0.00012602,2]
[398587734,1765857090997,-500.0,0.00012602,2]
[398587735,1765857091015,-500.0,0.00012602,2]
[398587736,1765857091033,-1249.58,0.00012602,2]
[398587737,1765857091049,-5203.28,0.00012602,2]
[398587738,1765857091068,-2367.41,0.00012602,2]
[398587739,1765857091082,-3863.02,0.00012602,2]
[398587740,1765857091098,-500.0,0.00012602,2]
[398587741,1765857091115,-2306.5,0.00012602,2]
[398587742,1765857091136,-5137.41,0.00012602,2]
[398587743,1765857091150,-500.0,0.00012602,2]
[398587744,1765857091166,-674.15,0.00012602,2]
[398587745,1765857091182,-500.0,0.00012602,2]
[398587746,1765857091198,-560.29,0.00012602,2]
[398587747,1765857091214,-500.0,0.00012602,2]
[398587748,1765857091227,-2457.45,0.00012602,2]
[398587749,1765857091241,-1620.3,0.00012602,2]
[398587750,1765857091256,-935.88,0.00012602,2]
[398587751,1765857091270,-2175.69,0.00012602,2]
[398587752,1765857091284,-500.0,0.00012602,2]
[398587753,1765857091299,-500.0,0.00012602,2]
[398587754,1765857091313,-831.4,0.00012602,2]
[398587755,1765857091328,-537.44,0.00012602,2]
[398587756,1765857091342,-500.0,0.00012602,2]
[398587757,1765857091357,-518.05034366,0.00012602,2]
[398587758,1765857091373,-500.0,0.00012602,2]
[398587759,1765857091389,-1150.49,0.00012602,2]
[398587760,1765857091405,-1864.02726487,0.00012603,2]
[398587761,1765857091421,-3207.40519818,0.00012637,2]
[398587762,1765857091436,-250.0,0.00012707,2]
[398587763,1765857091455,-458.13783809,0.00012717,2]
[398587764,1765857091472,-276.70838569,0.0001272,2]
[398587765,1765857091486,-5693.0,0.00012797,2]
[398587766,1765857091500,-415.0,0.00012797,2]
[398587767,1765857091516,-1369.256,0.00012797,2]
[398587768,1765857091530,-2157.0,0.00012797,2]
[398587769,1765857091544,-632.0,0.00012797,2]
[398587770,1765857091558,-152.08,0.000128,2]
[398587771,1765857091572,-3839.6,0.00012876,2]
[398587772,1765857091586,-500.0,0.00012876,2]
[398587773,1765857091600,-500.0,0.00012876,2]
[398587774,1765857091615,-243.93325735,0.00012876,2]
[398587775,1765857091630,-500.0,0.00012876,2]
[398587776,1765857091644,-500.0,0.00012876,2]
[398587777,1765857091658,-500.0,0.00012876,2]
[398587778,1765857091672,-500.0,0.00012876,2]